[Event "Titled Tuesday Blitz October 12 2021"]
[White "Khusnutdinov, Rustam"]
[Black "Koksik_13"]
[WhiteFideId "13701703"]
[WhiteElo "2571"]
[BlackElo "2719"]
[Result "1-0"]
[Round "06"]
[TimeControl "180+1"]
[Date "2021.10.12"]
[WhiteClock "0:00:33"]
[BlackClock "0:00:24"]

1. d4 {[%clk 0:03:00]}  e6 {[%clk 0:03:00]} 2. c4 {[%clk 0:02:58]}  d5 {[%clk 0:03:00]} 3. Nf3 {[%clk 0:02:57]}  a6 {[%clk 0:03:00]} 4. Nbd2 {[%clk 0:02:52]}  Nf6 {[%clk 0:03:00]} 5. g3 {[%clk 0:02:51]}  dxc4 {[%clk 0:02:59]} 6. Nxc4 {[%clk 0:02:51]}  b5 {[%clk 0:02:59]} 7. Nce5 {[%clk 0:02:51]}  Bb7 {[%clk 0:02:59]} 8. Bg2 {[%clk 0:02:52]}  Nbd7 {[%clk 0:03:00]} 9. Nxf7 {[%clk 0:02:46]}  Bxf3 {[%clk 0:02:41]} 10. Nxd8 {[%clk 0:02:45]}  Bxg2 {[%clk 0:02:41]} 11. Rg1 {[%clk 0:02:45]}  Bd5 {[%clk 0:02:39]} 12. Nxe6 {[%clk 0:02:13]}  Bxe6 {[%clk 0:02:39]} 13. Qc2 {[%clk 0:02:14]}  c5 {[%clk 0:02:35]} 14. Be3 {[%clk 0:02:00]}  Rc8 {[%clk 0:02:22]} 15. dxc5 {[%clk 0:02:00]}  Nxc5 {[%clk 0:02:21]} 16. Rc1 {[%clk 0:01:52]}  Nd5 {[%clk 0:01:46]} 17. Bxc5 {[%clk 0:01:41]}  Bxc5 {[%clk 0:01:45]} 18. Qxc5 {[%clk 0:01:40]}  Rxc5 {[%clk 0:01:44]} 19. Rxc5 {[%clk 0:01:41]}  Kd7 {[%clk 0:01:40]} 20. a3 {[%clk 0:01:41]}  Kd6 {[%clk 0:01:34]} 21. Rc1 {[%clk 0:01:35]}  b4 {[%clk 0:01:33]} 22. e4 {[%clk 0:01:30]}  Nf6 {[%clk 0:01:31]} 23. f3 {[%clk 0:01:31]}  bxa3 {[%clk 0:01:30]} 24. bxa3 {[%clk 0:01:32]}  Rb8 {[%clk 0:01:29]} 25. Rg2 {[%clk 0:01:19]}  Rb3 {[%clk 0:01:22]} 26. Rd2+ {[%clk 0:01:19]}  Ke7 {[%clk 0:01:22]} 27. Rc7+ {[%clk 0:01:18]}  Nd7 {[%clk 0:01:22]} 28. f4 {[%clk 0:01:19]}  g6 {[%clk 0:01:18]} 29. Rc6 {[%clk 0:00:57]}  Rxa3 {[%clk 0:01:07]} 30. Kf2 {[%clk 0:00:57]}  Bg4 {[%clk 0:01:06]} 31. Rc7 {[%clk 0:00:44]}  a5 {[%clk 0:01:01]} 32. f5 {[%clk 0:00:44]}  gxf5 {[%clk 0:00:53]} 33. Rcxd7+ {[%clk 0:00:44]}  Kf6 {[%clk 0:00:52]} 34. e5+ {[%clk 0:00:33]}  Kxe5 {[%clk 0:00:51]} 35. Rxh7 {[%clk 0:00:33]}  a4 {[%clk 0:00:49]} 36. h3 {[%clk 0:00:33]}  Bf3 {[%clk 0:00:43]} 37. Re7+ {[%clk 0:00:34]}  Kf6 {[%clk 0:00:42]} 38. Re3 {[%clk 0:00:35]}  Rxe3 {[%clk 0:00:36]} 39. Kxe3 {[%clk 0:00:36]}  Be4 {[%clk 0:00:32]} 40. Rd6+ {[%clk 0:00:35]}  Kg5 {[%clk 0:00:31]} 41. Ra6 {[%clk 0:00:36]}  Bg2 {[%clk 0:00:31]} 42. h4+ {[%clk 0:00:35]}  Kg4 {[%clk 0:00:31]} 43. Kf2 {[%clk 0:00:34]}  Be4 {[%clk 0:00:25]} 44. Rxa4 {[%clk 0:00:33]}  Kh5 {[%clk 0:00:24]} 45. Rxe4 {[%clk 0:00:32]}  fxe4 {[%clk 0:00:25]} 46. Ke3 {[%clk 0:00:33]}  Kg4 {[%clk 0:00:23]} 47. Kxe4 {[%clk 0:00:33]}  Kxg3 {[%clk 0:00:24]} 48. h5 {[%clk 0:00:33]} 1-0


[Site "https://www.chess.com"]

[Event "Titled Tuesday Blitz October 12 2021"]
[White "Lazavik, Denis"]
[Black "Terry, Renato"]
[WhiteFideId "13515110"]
[BlackFideId "3803457"]
[WhiteElo "2436"]
[BlackElo "2577"]
[Result "1/2-1/2"]
[Round "06"]
[TimeControl "180+1"]
[Date "2021.10.12"]
[WhiteClock "0:00:05"]
[BlackClock "0:00:05"]

1. d4 {[%clk 0:03:00]}  d5 {[%clk 0:03:00]} 2. c4 {[%clk 0:02:59]}  c6 {[%clk 0:03:00]} 3. Nf3 {[%clk 0:02:59]}  Nf6 {[%clk 0:03:01]} 4. e3 {[%clk 0:02:58]}  a6 {[%clk 0:03:01]} 5. Bd3 {[%clk 0:02:48]}  Bg4 {[%clk 0:02:59]} 6. h3 {[%clk 0:02:44]}  Bh5 {[%clk 0:02:57]} 7. Nbd2 {[%clk 0:02:41]}  Nbd7 {[%clk 0:02:52]} 8. O-O {[%clk 0:02:40]}  e6 {[%clk 0:02:52]} 9. b3 {[%clk 0:02:39]}  Bd6 {[%clk 0:02:41]} 10. Bb2 {[%clk 0:02:38]}  O-O {[%clk 0:02:37]} 11. Qc2 {[%clk 0:02:37]}  Bg6 {[%clk 0:02:08]} 12. Bxg6 {[%clk 0:02:31]}  hxg6 {[%clk 0:02:08]} 13. e4 {[%clk 0:02:30]}  dxe4 {[%clk 0:02:02]} 14. Nxe4 {[%clk 0:02:31]}  Nxe4 {[%clk 0:02:02]} 15. Qxe4 {[%clk 0:02:32]}  Re8 {[%clk 0:01:59]} 16. Rfe1 {[%clk 0:02:31]}  Qf6 {[%clk 0:01:51]} 17. Ne5 {[%clk 0:02:11]}  Rad8 {[%clk 0:01:29]} 18. Rad1 {[%clk 0:01:48]}  Bb4 {[%clk 0:01:25]} 19. Nxd7 {[%clk 0:01:30]}  Rxd7 {[%clk 0:01:26]} 20. Re2 {[%clk 0:01:30]}  Red8 {[%clk 0:01:19]} 21. Qc2 {[%clk 0:01:16]}  Qf5 {[%clk 0:01:17]} 22. Rd3 {[%clk 0:01:16]}  Be7 {[%clk 0:01:13]} 23. Qd1 {[%clk 0:01:08]}  Bf6 {[%clk 0:01:07]} 24. Red2 {[%clk 0:00:58]}  Bg5 {[%clk 0:01:07]} 25. Re2 {[%clk 0:00:58]}  Bf6 {[%clk 0:01:05]} 26. Red2 {[%clk 0:00:58]}  Qh5 {[%clk 0:01:00]} 27. Qc2 {[%clk 0:00:50]}  Qh4 {[%clk 0:00:52]} 28. Qd1 {[%clk 0:00:37]}  Qf4 {[%clk 0:00:42]} 29. Bc3 {[%clk 0:00:26]}  b6 {[%clk 0:00:31]} 30. Rf3 {[%clk 0:00:24]}  Qh4 {[%clk 0:00:31]} 31. Rfd3 {[%clk 0:00:23]}  Qe4 {[%clk 0:00:29]} 32. Re3 {[%clk 0:00:20]}  Qf5 {[%clk 0:00:29]} 33. Rf3 {[%clk 0:00:20]}  Qh5 {[%clk 0:00:30]} 34. Kf1 {[%clk 0:00:12]}  b5 {[%clk 0:00:13]} 35. Ba5 {[%clk 0:00:10]}  Rb8 {[%clk 0:00:13]} 36. Bc3 {[%clk 0:00:10]}  Rbd8 {[%clk 0:00:09]} 37. Ba5 {[%clk 0:00:09]}  Re8 {[%clk 0:00:10]} 38. Bc3 {[%clk 0:00:09]}  Rc8 {[%clk 0:00:02]} 39. Rfd3 {[%clk 0:00:08]}  Rb8 {[%clk 0:00:03]} 40. Qxh5 {[%clk 0:00:08]}  gxh5 {[%clk 0:00:04]} 41. Ke2 {[%clk 0:00:08]}  Rbd8 {[%clk 0:00:03]} 42. Ba5 {[%clk 0:00:07]}  Rc8 {[%clk 0:00:04]} 43. Bc3 {[%clk 0:00:07]}  Bg5 {[%clk 0:00:04]} 44. Rd1 {[%clk 0:00:07]}  Rcd8 {[%clk 0:00:04]} 45. Ba5 {[%clk 0:00:07]}  Rc8 {[%clk 0:00:04]} 46. Bc3 {[%clk 0:00:08]}  Kh7 {[%clk 0:00:04]} 47. Ba5 {[%clk 0:00:04]}  Kg6 {[%clk 0:00:04]} 48. Rg3 {[%clk 0:00:04]}  h4 {[%clk 0:00:04]} 49. Rgd3 {[%clk 0:00:04]}  Kf5 {[%clk 0:00:04]} 50. Bd2 {[%clk 0:00:02]}  Bf6 {[%clk 0:00:04]} 51. Be3 {[%clk 0:00:03]}  Rcd8 {[%clk 0:00:04]} 52. R1d2 {[%clk 0:00:03]}  Kg6 {[%clk 0:00:04]} 53. Rd1 {[%clk 0:00:01]}  Kf5 {[%clk 0:00:04]} 54. R1d2 {[%clk 0:00:02]}  g5 {[%clk 0:00:05]} 55. f3 {[%clk 0:00:01]}  Bg7 {[%clk 0:00:05]} 56. Rd1 {[%clk 0:00:02]}  Kg6 {[%clk 0:00:05]} 57. R1d2 {[%clk 0:00:02]}  Kf5 {[%clk 0:00:06]} 58. Rd1 {[%clk 0:00:03]}  Bf6 {[%clk 0:00:06]} 59. R1d2 {[%clk 0:00:03]}  Be7 {[%clk 0:00:07]} 60. Rd1 {[%clk 0:00:03]}  Bb4 {[%clk 0:00:07]} 61. Bf2 {[%clk 0:00:04]}  f6 {[%clk 0:00:07]} 62. Rc1 {[%clk 0:00:04]}  Ba3 {[%clk 0:00:07]} 63. Rcd1 {[%clk 0:00:04]}  Bf8 {[%clk 0:00:06]} 64. R1d2 {[%clk 0:00:05]}  Bb4 {[%clk 0:00:06]} 65. Rd1 {[%clk 0:00:05]}  Ba5 {[%clk 0:00:06]} 66. Rc1 {[%clk 0:00:05]}  e5 {[%clk 0:00:05]} 67. Rcd1 {[%clk 0:00:05]}  e4 {[%clk 0:00:03]} 68. fxe4+ {[%clk 0:00:05]}  Kxe4 {[%clk 0:00:04]} 69. Re3+ {[%clk 0:00:05]}  Kf5 {[%clk 0:00:04]} 70. Rf3+ {[%clk 0:00:06]}  Kg6 {[%clk 0:00:04]} 71. Rfd3 {[%clk 0:00:04]}  Bb6 {[%clk 0:00:05]} 72. d5 {[%clk 0:00:03]}  Bxf2 {[%clk 0:00:05]} 73. Kxf2 {[%clk 0:00:04]}  cxd5 {[%clk 0:00:05]} 74. cxd5 {[%clk 0:00:04]}  Kf5 {[%clk 0:00:05]} 75. d6 {[%clk 0:00:04]}  Ke6 {[%clk 0:00:05]} 76. Re3+ {[%clk 0:00:05]}  Kf7 {[%clk 0:00:06]} 77. Red3 {[%clk 0:00:06]}  Rc8 {[%clk 0:00:04]} 78. R1d2 {[%clk 0:00:05]}  Rc5 {[%clk 0:00:04]} 79. Kf3 {[%clk 0:00:06]}  Rf5+ {[%clk 0:00:03]} 80. Ke2 {[%clk 0:00:04]}  Ke6 {[%clk 0:00:03]} 81. Ke1 {[%clk 0:00:04]}  Re5+ {[%clk 0:00:03]} 82. Kf2 {[%clk 0:00:04]}  f5 {[%clk 0:00:03]} 83. Rd4 {[%clk 0:00:04]}  Kf6 {[%clk 0:00:02]} 84. R4d3 {[%clk 0:00:05]}  Ke6 {[%clk 0:00:02]} 85. Rd4 {[%clk 0:00:05]}  a5 {[%clk 0:00:03]} 86. Rd1 {[%clk 0:00:05]}  b4 {[%clk 0:00:04]} 87. R1d2 {[%clk 0:00:05]}  Rc5 {[%clk 0:00:04]} 88. R4d3 {[%clk 0:00:05]}  Rc6 {[%clk 0:00:04]} 89. Re2+ {[%clk 0:00:05]}  Kf6 {[%clk 0:00:05]} 90. Red2 {[%clk 0:00:06]}  Ke5 {[%clk 0:00:05]} 91. Rd5+ {[%clk 0:00:06]}  Ke6 {[%clk 0:00:05]} 92. Rxa5 {[%clk 0:00:06]}  Rdxd6 {[%clk 0:00:05]} 93. Rxd6+ {[%clk 0:00:07]}  Rxd6 {[%clk 0:00:05]} 94. Rb5 {[%clk 0:00:07]}  Rd2+ {[%clk 0:00:06]} 95. Kg1 {[%clk 0:00:07]}  Rxa2 {[%clk 0:00:05]} 96. Rxb4 {[%clk 0:00:08]}  Rb2 {[%clk 0:00:06]} 97. Rb8 {[%clk 0:00:06]}  Ke5 {[%clk 0:00:07]} 98. Rb4 {[%clk 0:00:05]}  Rc2 {[%clk 0:00:07]} 99. Kf1 {[%clk 0:00:04]}  Ra2 {[%clk 0:00:05]} 100. Kg1 {[%clk 0:00:03]}  Rb2 {[%clk 0:00:05]} 101. Kh2 {[%clk 0:00:04]}  Rd2 {[%clk 0:00:03]} 102. Kg1 {[%clk 0:00:04]}  Kf6 {[%clk 0:00:03]} 103. Rb6+ {[%clk 0:00:04]}  Kg7 {[%clk 0:00:03]} 104. b4 {[%clk 0:00:03]}  Rb2 {[%clk 0:00:03]} 105. b5 {[%clk 0:00:04]}  g4 {[%clk 0:00:03]} 106. hxg4 {[%clk 0:00:03]}  fxg4 {[%clk 0:00:04]} 107. Kf1 {[%clk 0:00:02]}  g3 {[%clk 0:00:04]} 108. Rd6 {[%clk 0:00:02]}  Rb1+ {[%clk 0:00:01]} 109. Ke2 {[%clk 0:00:03]}  Rxb5 {[%clk 0:00:02]} 110. Kf3 {[%clk 0:00:03]}  Rb2 {[%clk 0:00:01]} 111. Kg4 {[%clk 0:00:03]}  Rxg2 {[%clk 0:00:02]} 112. Kxh4 {[%clk 0:00:03]}  Rg1 {[%clk 0:00:02]} 113. Kh3 {[%clk 0:00:04]}  g2 {[%clk 0:00:02]} 114. Rd2 {[%clk 0:00:03]}  Rh1+ {[%clk 0:00:02]} 115. Kxg2 {[%clk 0:00:04]}  Rh6 {[%clk 0:00:03]} 116. Rd3 {[%clk 0:00:04]}  Rg6+ {[%clk 0:00:04]} 117. Rg3 {[%clk 0:00:05]}  Kf6 {[%clk 0:00:05]} 118. Rxg6+ {[%clk 0:00:05]}  Kxg6 {[%clk 0:00:05]} 1/2-1/2


[Site "https://www.chess.com"]

[Event "Titled Tuesday Blitz October 12 2021"]
[White "Obregon, Andres Carlos"]
[Black "Avila Pavas, Santiago"]
[WhiteFideId "111724"]
[BlackFideId "4437128"]
[WhiteElo "2572"]
[BlackElo "2292"]
[Result "1-0"]
[Round "06"]
[TimeControl "180+1"]
[Date "2021.10.12"]
[WhiteClock "0:00:50"]
[BlackClock "0:01:12"]

1. d4 {[%clk 0:03:00]}  Nf6 {[%clk 0:03:00]} 2. c4 {[%clk 0:02:56]}  c5 {[%clk 0:03:00]} 3. Nf3 {[%clk 0:02:53]}  cxd4 {[%clk 0:03:00]} 4. Nxd4 {[%clk 0:02:49]}  Nc6 {[%clk 0:03:01]} 5. Nc3 {[%clk 0:02:46]}  g6 {[%clk 0:03:01]} 6. e4 {[%clk 0:02:43]}  d6 {[%clk 0:03:00]} 7. Nc2 {[%clk 0:02:37]}  Bg7 {[%clk 0:03:00]} 8. Be2 {[%clk 0:02:34]}  Nd7 {[%clk 0:03:00]} 9. Bd2 {[%clk 0:02:31]}  O-O {[%clk 0:02:59]} 10. O-O {[%clk 0:02:28]}  Nc5 {[%clk 0:02:59]} 11. b4 {[%clk 0:02:25]}  Ne6 {[%clk 0:02:56]} 12. Rc1 {[%clk 0:02:21]}  Bd7 {[%clk 0:02:55]} 13. Nd5 {[%clk 0:02:17]}  Ned4 {[%clk 0:02:52]} 14. Nxd4 {[%clk 0:02:09]}  Nxd4 {[%clk 0:02:53]} 15. Bg5 {[%clk 0:02:03]}  Re8 {[%clk 0:02:45]} 16. Bd3 {[%clk 0:02:02]}  h6 {[%clk 0:02:39]} 17. Bh4 {[%clk 0:01:46]}  Bc6 {[%clk 0:02:22]} 18. Qd2 {[%clk 0:01:41]}  Qd7 {[%clk 0:02:15]} 19. f4 {[%clk 0:01:25]}  a5 {[%clk 0:01:35]} 20. f5 {[%clk 0:01:14]}  Bxd5 {[%clk 0:01:29]} 21. cxd5 {[%clk 0:01:07]}  g5 {[%clk 0:01:25]} 22. Bf2 {[%clk 0:01:00]}  axb4 {[%clk 0:01:25]} 23. Qxb4 {[%clk 0:00:52]}  Ra4 {[%clk 0:01:22]} 24. Qb6 {[%clk 0:00:51]}  Ra6 {[%clk 0:01:12]} 25. Bxa6 {[%clk 0:00:50]} 1-0


[Site "https://www.chess.com"]

[Event "Titled Tuesday Blitz October 12 2021"]
[White "Shipov, Sergei"]
[Black "Vokhidov, Shamsiddin"]
[WhiteFideId "4113624"]
[BlackFideId "14204223"]
[WhiteElo "2850"]
[BlackElo "2616"]
[Result "0-1"]
[Round "06"]
[TimeControl "180+1"]
[Date "2021.10.12"]
[WhiteClock "0:00:04"]
[BlackClock "0:01:46"]

1. d4 {[%clk 0:03:00]}  Nf6 {[%clk 0:03:00]} 2. c4 {[%clk 0:03:00]}  e6 {[%clk 0:03:01]} 3. Nc3 {[%clk 0:03:00]}  Bb4 {[%clk 0:03:02]} 4. Qc2 {[%clk 0:03:00]}  O-O {[%clk 0:03:02]} 5. a3 {[%clk 0:03:01]}  Bxc3+ {[%clk 0:03:03]} 6. Qxc3 {[%clk 0:03:02]}  b6 {[%clk 0:03:02]} 7. Bg5 {[%clk 0:03:01]}  c5 {[%clk 0:03:02]} 8. dxc5 {[%clk 0:03:00]}  bxc5 {[%clk 0:03:03]} 9. e3 {[%clk 0:02:58]}  d6 {[%clk 0:03:00]} 10. Bd3 {[%clk 0:02:54]}  Nbd7 {[%clk 0:02:59]} 11. Nf3 {[%clk 0:02:53]}  Rb8 {[%clk 0:02:57]} 12. O-O {[%clk 0:02:42]}  Bb7 {[%clk 0:02:50]} 13. Nd2 {[%clk 0:02:41]}  h6 {[%clk 0:02:48]} 14. Bh4 {[%clk 0:02:38]}  Qb6 {[%clk 0:02:47]} 15. b4 {[%clk 0:02:22]}  Rfc8 {[%clk 0:02:43]} 16. b5 {[%clk 0:02:18]}  d5 {[%clk 0:02:34]} 17. a4 {[%clk 0:02:08]}  e5 {[%clk 0:02:31]} 18. Bf5 {[%clk 0:01:56]}  d4 {[%clk 0:02:31]} 19. Qc2 {[%clk 0:01:56]}  Re8 {[%clk 0:02:30]} 20. a5 {[%clk 0:01:42]}  Qd6 {[%clk 0:02:29]} 21. Rad1 {[%clk 0:01:42]}  g6 {[%clk 0:02:27]} 22. Bxg6 {[%clk 0:00:52]}  fxg6 {[%clk 0:02:12]} 23. Qxg6+ {[%clk 0:00:52]}  Kf8 {[%clk 0:02:13]} 24. f4 {[%clk 0:00:53]}  e4 {[%clk 0:02:08]} 25. Nb3 {[%clk 0:00:48]}  d3 {[%clk 0:02:04]} 26. a6 {[%clk 0:00:30]}  Ba8 {[%clk 0:02:03]} 27. Nd2 {[%clk 0:00:20]}  Re7 {[%clk 0:01:55]} 28. f5 {[%clk 0:00:15]}  Rg7 {[%clk 0:01:51]} 29. Qxh6 {[%clk 0:00:14]}  Kf7 {[%clk 0:01:52]} 30. Rf4 {[%clk 0:00:10]}  Rbg8 {[%clk 0:01:49]} 31. g3 {[%clk 0:00:09]}  Rh7 {[%clk 0:01:49]} 32. Qxh7+ {[%clk 0:00:05]}  Nxh7 {[%clk 0:01:49]} 33. f6 {[%clk 0:00:05]}  Ng5 {[%clk 0:01:46]} 34. Kg2 {[%clk 0:00:05]}  Nf3 {[%clk 0:01:46]} 35. Nxe4 {[%clk 0:00:04]}  Nxh4+ {[%clk 0:01:46]} 36. Rxh4 {[%clk 0:00:04]}  Qe5 {[%clk 0:01:46]} 0-1


[Site "https://www.chess.com"]

[Event "Titled Tuesday Blitz October 12 2021"]
[White "Shkapenko, Pavel"]
[Black "Warmerdam, Max"]
[WhiteFideId "4151933"]
[BlackFideId "1048104"]
[WhiteElo "2386"]
[BlackElo "2537"]
[Result "0-1"]
[Round "06"]
[TimeControl "180+1"]
[Date "2021.10.12"]
[WhiteClock "0:00:05"]
[BlackClock "0:01:31"]

1. e4 {[%clk 0:02:56]}  c5 {[%clk 0:02:59]} 2. c3 {[%clk 0:02:56]}  Nf6 {[%clk 0:02:59]} 3. e5 {[%clk 0:02:56]}  Nd5 {[%clk 0:02:59]} 4. d4 {[%clk 0:02:57]}  cxd4 {[%clk 0:03:00]} 5. cxd4 {[%clk 0:02:58]}  d6 {[%clk 0:03:00]} 6. Nf3 {[%clk 0:02:57]}  Nc6 {[%clk 0:03:00]} 7. Bc4 {[%clk 0:02:57]}  dxe5 {[%clk 0:03:00]} 8. Nxe5 {[%clk 0:02:56]}  e6 {[%clk 0:03:00]} 9. O-O {[%clk 0:02:56]}  Be7 {[%clk 0:03:00]} 10. Nf3 {[%clk 0:02:55]}  O-O {[%clk 0:02:59]} 11. Nc3 {[%clk 0:02:55]}  Ncb4 {[%clk 0:02:31]} 12. Bd2 {[%clk 0:02:23]}  b6 {[%clk 0:02:31]} 13. Ne5 {[%clk 0:02:02]}  Bb7 {[%clk 0:02:30]} 14. Rc1 {[%clk 0:02:03]}  Rc8 {[%clk 0:02:30]} 15. Bb3 {[%clk 0:01:58]}  Bf6 {[%clk 0:02:26]} 16. Ne4 {[%clk 0:01:50]}  Rxc1 {[%clk 0:02:25]} 17. Bxc1 {[%clk 0:01:49]}  Be7 {[%clk 0:02:23]} 18. a3 {[%clk 0:01:40]}  Nc6 {[%clk 0:02:22]} 19. Nxc6 {[%clk 0:01:32]}  Bxc6 {[%clk 0:02:23]} 20. Bc2 {[%clk 0:01:32]}  Qd7 {[%clk 0:02:21]} 21. Qh5 {[%clk 0:01:29]}  g6 {[%clk 0:02:19]} 22. Qh6 {[%clk 0:01:29]}  Rc8 {[%clk 0:02:17]} 23. Ng5 {[%clk 0:01:27]}  Nf6 {[%clk 0:02:16]} 24. Be3 {[%clk 0:01:24]}  Bxg2 {[%clk 0:02:12]} 25. Bxg6 {[%clk 0:01:23]}  hxg6 {[%clk 0:02:12]} 26. Kxg2 {[%clk 0:01:23]}  Qd5+ {[%clk 0:02:12]} 27. Kg1 {[%clk 0:01:15]}  Qf5 {[%clk 0:02:10]} 28. Qh3 {[%clk 0:01:06]}  Qxh3 {[%clk 0:02:07]} 29. Nxh3 {[%clk 0:01:07]}  Rc2 {[%clk 0:02:07]} 30. Rc1 {[%clk 0:01:03]}  Rxc1+ {[%clk 0:02:03]} 31. Bxc1 {[%clk 0:01:03]}  Bd6 {[%clk 0:02:04]} 32. Ng5 {[%clk 0:01:01]}  Kg7 {[%clk 0:02:03]} 33. h3 {[%clk 0:01:00]}  Nd5 {[%clk 0:01:58]} 34. Nf3 {[%clk 0:00:49]}  f6 {[%clk 0:01:57]} 35. Kf1 {[%clk 0:00:42]}  Kf7 {[%clk 0:01:57]} 36. Be3 {[%clk 0:00:39]}  g5 {[%clk 0:01:56]} 37. Ke2 {[%clk 0:00:39]}  Kg6 {[%clk 0:01:56]} 38. Kd3 {[%clk 0:00:38]}  Kf5 {[%clk 0:01:57]} 39. Nd2 {[%clk 0:00:31]}  a6 {[%clk 0:01:56]} 40. Ne4 {[%clk 0:00:28]}  Bf4 {[%clk 0:01:56]} 41. Ng3+ {[%clk 0:00:22]}  Kg6 {[%clk 0:01:51]} 42. Ne2 {[%clk 0:00:20]}  Bd6 {[%clk 0:01:50]} 43. Kd2 {[%clk 0:00:15]}  Kh5 {[%clk 0:01:49]} 44. Ke1 {[%clk 0:00:11]}  Kh4 {[%clk 0:01:49]} 45. Ng1 {[%clk 0:00:11]}  Bh2 {[%clk 0:01:48]} 46. Nf3+ {[%clk 0:00:11]}  Kxh3 {[%clk 0:01:49]} 47. Bxg5 {[%clk 0:00:11]}  fxg5 {[%clk 0:01:45]} 48. Nxg5+ {[%clk 0:00:12]}  Kg4 {[%clk 0:01:45]} 49. Nxe6 {[%clk 0:00:13]}  Kf5 {[%clk 0:01:44]} 50. Nd8 {[%clk 0:00:10]}  Ke4 {[%clk 0:01:43]} 51. Nc6 {[%clk 0:00:09]}  Bd6 {[%clk 0:01:42]} 52. Ke2 {[%clk 0:00:07]}  Nf4+ {[%clk 0:01:39]} 53. Kd2 {[%clk 0:00:07]}  Ne6 {[%clk 0:01:40]} 54. Kc3 {[%clk 0:00:06]}  Nxd4 {[%clk 0:01:40]} 55. Nb4 {[%clk 0:00:04]}  Bxb4+ {[%clk 0:01:39]} 56. Kxb4 {[%clk 0:00:04]}  Kd5 {[%clk 0:01:39]} 57. a4 {[%clk 0:00:04]}  a5+ {[%clk 0:01:40]} 58. Kc3 {[%clk 0:00:04]}  Nc6 {[%clk 0:01:38]} 59. Kd3 {[%clk 0:00:04]}  Ne5+ {[%clk 0:01:38]} 60. Kc3 {[%clk 0:00:04]}  Nf3 {[%clk 0:01:37]} 61. b4 {[%clk 0:00:04]}  Ne5 {[%clk 0:01:30]} 62. bxa5 {[%clk 0:00:04]}  bxa5 {[%clk 0:01:31]} 63. f4 {[%clk 0:00:04]}  Nd7 {[%clk 0:01:31]} 64. Kd3 {[%clk 0:00:04]}  Nc5+ {[%clk 0:01:31]} 65. Kc3 {[%clk 0:00:04]}  Nxa4+ {[%clk 0:01:32]} 66. Kb3 {[%clk 0:00:05]}  Nc5+ {[%clk 0:01:33]} 67. Kc3 {[%clk 0:00:04]}  Ke4 {[%clk 0:01:33]} 68. Kc4 {[%clk 0:00:04]}  Nb7 {[%clk 0:01:31]} 69. Kb5 {[%clk 0:00:04]}  Kxf4 {[%clk 0:01:31]} 70. Kb6 {[%clk 0:00:05]}  a4 {[%clk 0:01:31]} 0-1


[Site "https://www.chess.com"]

[Event "Titled Tuesday Blitz October 12 2021"]
[White "Sinitsina, Anastassia"]
[Black "Mikhalevski, Victor"]
[WhiteFideId "4504640"]
[BlackFideId "2801914"]
[WhiteElo "2161"]
[BlackElo "2577"]
[Result "1-0"]
[Round "06"]
[TimeControl "180+1"]
[Date "2021.10.12"]
[WhiteClock "0:01:10"]
[BlackClock "0:01:31"]

1. Nf3 {[%clk 0:03:00]}  Nf6 {[%clk 0:02:59]} 2. g3 {[%clk 0:03:01]}  g6 {[%clk 0:02:59]} 3. Bg2 {[%clk 0:03:02]}  Bg7 {[%clk 0:02:59]} 4. O-O {[%clk 0:03:02]}  O-O {[%clk 0:02:59]} 5. d3 {[%clk 0:03:03]}  d5 {[%clk 0:02:58]} 6. Nbd2 {[%clk 0:03:03]}  Nc6 {[%clk 0:02:57]} 7. e4 {[%clk 0:03:03]}  e5 {[%clk 0:02:57]} 8. Re1 {[%clk 0:03:02]}  a5 {[%clk 0:02:56]} 9. exd5 {[%clk 0:03:01]}  Nxd5 {[%clk 0:02:56]} 10. Nc4 {[%clk 0:03:01]}  Re8 {[%clk 0:02:55]} 11. a4 {[%clk 0:03:01]}  h6 {[%clk 0:02:54]} 12. c3 {[%clk 0:02:59]}  Bf5 {[%clk 0:02:50]} 13. Nh4 {[%clk 0:02:54]}  Be6 {[%clk 0:02:49]} 14. Qc2 {[%clk 0:02:54]}  Qd7 {[%clk 0:02:45]} 15. Nf3 {[%clk 0:02:45]}  Bh3 {[%clk 0:02:42]} 16. Ne3 {[%clk 0:02:32]}  Bxg2 {[%clk 0:02:40]} 17. Kxg2 {[%clk 0:02:32]}  Rad8 {[%clk 0:02:37]} 18. Nc4 {[%clk 0:02:29]}  Nb6 {[%clk 0:02:27]} 19. Nxb6 {[%clk 0:02:29]}  cxb6 {[%clk 0:02:27]} 20. Be3 {[%clk 0:02:26]}  Qxd3 {[%clk 0:02:25]} 21. Qxd3 {[%clk 0:02:23]}  Rxd3 {[%clk 0:02:24]} 22. Bxb6 {[%clk 0:02:23]}  e4 {[%clk 0:02:24]} 23. Ng1 {[%clk 0:02:13]}  f5 {[%clk 0:02:19]} 24. Rad1 {[%clk 0:02:11]}  Ne5 {[%clk 0:02:19]} 25. Bxa5 {[%clk 0:01:56]}  Nc4 {[%clk 0:02:16]} 26. Rxd3 {[%clk 0:01:53]}  Ra8 {[%clk 0:02:13]} 27. Rd8+ {[%clk 0:01:51]}  Rxd8 {[%clk 0:02:11]} 28. Bxd8 {[%clk 0:01:51]}  Nxb2 {[%clk 0:02:12]} 29. Rb1 {[%clk 0:01:44]}  Bxc3 {[%clk 0:02:10]} 30. Ne2 {[%clk 0:01:44]}  Be5 {[%clk 0:02:07]} 31. a5 {[%clk 0:01:42]}  Kf7 {[%clk 0:02:04]} 32. f3 {[%clk 0:01:39]}  Ke6 {[%clk 0:01:59]} 33. fxe4 {[%clk 0:01:39]}  fxe4 {[%clk 0:01:59]} 34. Bb6 {[%clk 0:01:34]}  Kd5 {[%clk 0:01:56]} 35. Nf4+ {[%clk 0:01:28]}  Kc4 {[%clk 0:01:54]} 36. Nxg6 {[%clk 0:01:28]}  Bc3 {[%clk 0:01:53]} 37. Nf4 {[%clk 0:01:24]}  Kb3 {[%clk 0:01:51]} 38. h4 {[%clk 0:01:23]}  Kc2 {[%clk 0:01:51]} 39. Rf1 {[%clk 0:01:19]}  Nc4 {[%clk 0:01:40]} 40. Nd5 {[%clk 0:01:18]}  Bd2 {[%clk 0:01:39]} 41. Rf7 {[%clk 0:01:17]}  e3 {[%clk 0:01:35]} 42. Nxe3+ {[%clk 0:01:12]}  Bxe3 {[%clk 0:01:32]} 43. Bxe3 {[%clk 0:01:12]}  Nxe3+ {[%clk 0:01:33]} 44. Kf3 {[%clk 0:01:12]}  Nc4 {[%clk 0:01:33]} 45. Rxb7 {[%clk 0:01:12]}  Nxa5 {[%clk 0:01:32]} 46. Rb6 {[%clk 0:01:12]}  h5 {[%clk 0:01:31]} 47. Rb5 {[%clk 0:01:12]}  Nc6 {[%clk 0:01:31]} 48. Rxh5 {[%clk 0:01:12]}  Nd4+ {[%clk 0:01:31]} 49. Ke4 {[%clk 0:01:11]}  Ne2 {[%clk 0:01:31]} 50. Rg5 {[%clk 0:01:10]} 1-0


[Site "https://www.chess.com"]